bitfinex/quotes_ETHUSD_20260126
["timestamp","ask_amount","ask_price","bid_price","bid_amount"]
[1769438994177,15.13934161,2921.8,2919.5,0.2335703]
[1769438995589,0.128,2921.5,2919.4,0.001]
[1769438995759,13.56667906,2921.4,2919.4,0.001]
[1769438995962,13.56667906,2921.2,2919.4,0.001]
[1769438996159,13.56667906,2921.0,2919.4,0.001]
[1769438996379,13.56667906,2920.8,2919.2,0.001]
[1769438997090,0.85590057,2920.9,2919.2,0.001]
[1769438997091,13.56667906,2920.6,2919.2,0.001]
[1769438998602,14.42268496,2920.6,2919.2,0.001]
[1769438998801,15.79242768,2920.6,2919.2,0.001]
[1769439000411,2.22574862,2920.6,2919.2,0.001]
[1769439000618,0.8560059,2920.6,2919.2,0.001]
[1769439000817,13.56667906,2920.5,2919.2,0.001]
[1769439002796,13.69467906,2921.0,2919.2,0.001]
[1769439002997,13.56667906,2921.0,2919.2,0.001]
[1769439003198,14.92334697,2920.9,2919.2,0.001]
[1769439004012,1.35666791,2920.9,2919.3,13.21939501]
[1769439004194,13.56667906,2921.4,2919.3,13.21939501]
[1769439004913,13.56667906,2921.4,2919.4,0.001]
[1769439005689,13.56667906,2921.2,2919.4,0.001]
[1769439005903,13.56667906,2921.0,2919.4,0.001]
[1769439006415,13.56667906,2921.0,2918.5,12.98582471]
[1769439006621,1.36946791,2920.9,2918.7,13.21939501]
[1769439006786,13.56667906,2920.4,2917.8,0.40267654]
[1769439006988,13.56667906,2920.2,2917.6,12.98582471]
[1769439007286,13.56667906,2919.8,2917.1,12.98582471]
[1769439008202,13.56667906,2919.6,2917.1,12.98582471]
[1769439009132,7.17214958,2920.1,2917.1,12.98582471]
[1769439009133,13.56667906,2919.4,2917.1,12.98582471]
[1769439009290,13.56667906,2919.4,2917.2,1.29858247]
[1769439010199,13.56667906,2919.4,2917.2,0.2335703]
[1769439010588,13.56667906,2919.4,2916.9,0.718]
[1769439010820,13.56667906,2919.4,2916.9,13.70382471]
[1769439011117,13.56667906,2919.4,2917.1,12.98582471]
[1769439011333,13.56667906,2919.4,2917.2,13.21939501]
[1769439011509,1.35666791,2919.3,2917.3,1.3219395]
[1769439012022,13.56667906,2919.3,2917.3,1.3219395]
[1769439012225,13.56667906,2919.3,2917.4,13.21939501]
[1769439012718,13.56667906,2919.8,2917.4,13.21939501]
[1769439013288,0.128,2919.5,2917.3,1.3219395]
[1769439013496,13.56667906,2919.4,2917.0,0.2335703]
[1769439013694,13.56667906,2919.4,2917.1,14.7335703]
[1769439013895,13.56667906,2919.4,2917.1,14.5]
[1769439014192,13.56667906,2919.4,2917.0,12.98582471]
[1769439014735,13.56667906,2919.2,2917.0,12.98582471]
[1769439015025,13.56667906,2919.0,2917.1,1.29858247]
[1769439016000,1.35666791,2919.1,2917.1,1.29858247]
[1769439016001,13.56667906,2918.8,2917.1,1.29858247]
[1769439016227,13.56667906,2918.8,2916.6,0.001]
[1769439016625,13.56667906,2918.6,2916.6,0.001]
[1769439017003,13.56667906,2918.6,2917.2,0.001]
[1769439019215,14.66887952,2919.1,2917.2,0.2345703]
[1769439019543,13.31221161,2919.1,2917.3,1.35894102]
[1769439019750,13.31221161,2919.6,2917.4,13.58841016]
[1769439020604,0.002,2919.8,2917.4,13.58841016]
[1769439020605,0.002,2919.8,2917.8,13.58841016]
[1769439020793,0.002,2919.8,2918.4,13.58841016]
[1769439020998,0.002,2919.8,2918.6,0.2335703]
[1769439021430,0.002,2919.8,2918.6,13.58841016]
[1769439022837,0.002,2919.8,2918.5,2.07605597]
[1769439023022,0.002,2919.8,2917.9,13.58841016]
[1769439023405,0.002,2919.8,2917.9,28.08841016]
[1769439023623,0.002,2919.8,2917.9,27.85483986]
[1769439023835,13.31421161,2919.8,2917.4,13.35483986]
[1769439024044,13.31421161,2919.8,2917.2,0.001]
[1769439024264,13.31221161,2919.6,2917.2,0.001]
[1769439025357,13.31221161,2919.4,2917.2,0.001]
[1769439025555,13.31221161,2919.4,2917.2,13.35583986]
[1769439025719,13.31221161,2919.4,2917.3,0.2335703]
[1769439025921,13.31221161,2919.4,2917.2,13.35583986]
[1769439026150,0.002,2919.8,2917.3,14.69042385]
[1769439026453,13.31421161,2919.8,2917.5,13.35483986]
[1769439027455,0.002,2919.8,2918.4,0.2335703]
[1769439028174,0.002,2919.8,2918.4,6.87768501]
[1769439028466,0.002,2919.8,2918.4,13.58841016]
[1769439028772,0.002,2919.8,2918.5,1.35884102]
[1769439029326,0.002,2919.6,2918.5,1.35884102]
[1769439029549,0.002,2919.6,2918.0,13.58841016]
[1769439031248,0.002,2919.6,2918.1,0.2335703]
[1769439032271,0.002,2919.6,2918.0,0.2335703]
[1769439032448,0.002,2919.6,2918.0,13.58841016]
[1769439032656,0.002,2919.6,2918.2,0.2335703]
[1769439034454,0.002,2919.6,2918.2,13.58841016]
[1769439036078,0.002,2919.6,2918.2,0.2335703]
[1769439036589,0.002,2919.6,2918.0,0.2335703]
[1769439037758,13.31421161,2919.6,2917.9,0.718]
[1769439037957,1.33142116,2919.5,2917.9,0.718]
[1769439038391,14.64363277,2919.5,2917.9,0.718]
[1769439039457,14.64363277,2919.5,2917.5,0.001]
[1769439039663,13.31221161,2919.3,2917.5,0.001]
[1769439039888,13.31221161,2919.1,2917.5,0.001]
[1769439040061,13.31221161,2918.9,2917.5,0.001]
[1769439040764,13.31221161,2918.5,2917.2,0.001]
[1769439041583,13.31221161,2918.3,2918.2,0.001]
[1769439041890,0.128,2918.7,2916.4,0.001]
[1769439041891,13.31221161,2918.1,2916.4,0.001]
[1769439042091,0.37963388,2918.9,2916.4,0.001]
[1769439042092,13.31221161,2917.5,2916.4,0.001]
[1769439042295,13.31221161,2917.5,2915.1,13.35483986]
[1769439042865,1.09240557,2918.2,2915.6,13.35483986]
[1769439042866,13.31221161,2918.0,2915.6,13.35483986]
[1769439043066,13.31221161,2918.0,2915.8,13.35483986]
[1769439043286,13.31221161,2918.0,2915.7,1.99989546]
[1769439043483,13.31221161,2918.0,2915.3,13.35483986]
[1769439044467,13.31221161,2918.0,2915.5,6.64411471]
[1769439045002,13.31221161,2918.0,2915.6,0.2335703]
[1769439045697,13.31221161,2918.0,2915.6,13.58841016]
[1769439046405,1.09240557,2918.2,2916.2,0.2335703]
[1769439046606,13.31221161,2918.5,2916.4,0.2335703]
[1769439046801,0.002,2919.4,2916.7,13.58841016]
[1769439046802,14.64343277,2919.0,2916.7,13.58841016]
[1769439047002,13.31221161,2919.0,2916.7,13.58841016]
[1769439047188,0.002,2919.4,2917.2,13.58841016]
[1769439047592,0.002,2919.4,2917.7,0.2335703]
[1769439048892,0.002,2919.4,2917.7,14.14213577]
[1769439049096,0.002,2919.4,2917.9,0.2335703]
[1769439049492,0.002,2919.6,2918.3,14.14213577]
[1769439050288,0.002,2919.6,2918.3,0.2335703]
[1769439050881,0.002,2919.6,2918.3,14.14213577]
[1769439051077,0.002,2919.6,2917.8,2.07862505]
[1769439051295,0.002,2919.6,2918.0,0.2335703]
[1769439052193,0.002,2919.6,2917.9,1.67051905]
[1769439052603,0.002,2919.6,2917.6,6.64411471]
[1769439053396,0.002,2919.6,2917.7,0.2335703]
[1769439053783,0.002,2919.6,2918.1,0.001]
[1769439054212,0.002,2919.4,2918.1,0.001]
[1769439057512,0.002,2919.6,2918.1,0.001]
[1769439057513,0.002,2919.6,2918.3,14.14213577]
[1769439057815,0.002,2919.8,2918.5,0.2335703]
[1769439058001,13.1016383,2920.8,2918.6,6.64411471]
[1769439058721,13.1016383,2920.0,2918.4,1.79221358]
[1769439058929,13.1016383,2920.0,2918.1,0.001]
[1769439060948,13.0996383,2919.6,2918.1,0.001]
[1769439061785,13.0996383,2919.4,2916.5,13.90856547]
[1769439062089,13.0996383,2919.0,2916.4,0.718]
[1769439062287,13.0996383,2918.8,2916.5,0.80498832]
[1769439062899,13.0996383,2918.6,2916.6,3.78]
[1769439063391,13.0996383,2918.6,2916.7,0.2335703]
[1769439064449,13.0996383,2918.6,2916.6,3.78]
[1769439064656,13.0996383,2919.7,2917.6,6.64411471]
[1769439064843,13.0996383,2919.7,2917.7,0.2335703]
[1769439065045,13.0996383,2919.7,2916.7,0.378]
[1769439065046,13.0996383,2919.7,2916.8,0.128]
[1769439065343,13.0996383,2919.7,2917.1,6.64411471]
[1769439065545,13.0996383,2919.3,2917.2,0.66441147]
[1769439065859,0.128,2919.4,2916.9,0.001]
[1769439065860,13.0996383,2918.7,2916.9,0.001]
[1769439067265,13.0996383,2919.2,2916.9,0.001]
[1769439067417,0.85642835,2919.1,2916.9,0.001]
[1769439067616,0.85642835,2919.1,2917.0,0.2335703]
[1769439068024,13.95606665,2919.1,2917.0,0.2335703]
[1769439068318,0.85641922,2919.2,2917.6,0.2335703]
[1769439069746,0.002,2919.4,2917.6,0.2335703]
[1769439070048,0.002,2919.4,2917.1,2.27132311]
[1769439070049,13.1016383,2919.4,2917.1,1.41431358]
[1769439070210,13.1016383,2919.4,2916.9,0.001]
[1769439070211,13.0996383,2919.2,2916.9,0.001]
[1769439070416,13.0996383,2919.0,2916.9,0.001]
[1769439071612,13.0996383,2918.8,2916.9,0.001]
[1769439071811,13.0996383,2918.6,2916.9,0.001]
[1769439073125,13.0996383,2918.4,2916.9,0.001]
[1769439073434,13.0996383,2918.4,2915.4,20.55268018]
[1769439073641,13.0996383,2918.2,2915.4,21.41019522]
[1769439073837,13.0996383,2918.2,2915.4,20.55268018]
[1769439074157,13.0996383,2918.0,2915.6,0.2335703]
[1769439074720,13.0996383,2918.0,2915.5,2.06806802]
[1769439075340,13.0996383,2918.0,2915.6,0.2335703]
[1769439075556,13.0996383,2918.0,2915.5,2.06806802]
[1769439075557,13.0996383,2917.8,2915.5,2.06806802]
[1769439075756,13.0996383,2917.6,2915.5,2.06806802]
[1769439075937,13.0996383,2917.6,2915.0,14.76618991]
[1769439076255,13.0996383,2917.6,2915.0,13.90856547]
[1769439077334,13.0996383,2917.6,2915.7,0.001]
[1769439077532,13.0996383,2917.4,2915.7,0.001]
[1769439077872,13.0996383,2917.2,2915.7,0.001]
[1769439078261,1.39565363,2917.3,2915.7,0.001]
[1769439078427,0.85689802,2917.5,2915.7,0.001]
[1769439078639,13.82323506,2917.5,2915.7,0.001]
[1769439079493,12.96633704,2917.3,2915.7,0.001]
[1769439079787,12.96633704,2917.1,2915.7,0.001]
[1769439081276,0.85698615,2917.2,2915.7,0.001]
[1769439081648,0.77128754,2917.2,2915.7,0.001]
[1769439081861,12.96633704,2917.3,2915.7,0.001]
[1769439083777,0.85698615,2917.2,2915.7,0.001]
[1769439084143,13.82332319,2917.2,2915.7,0.001]
[1769439085875,0.85698615,2917.2,2915.7,0.001]
[1769439086077,0.85686865,2917.6,2915.7,0.001]
[1769439086286,2.58193668,2917.6,2915.8,13.66742094]
[1769439086459,4.4449595,2918.1,2915.8,13.66742094]
[1769439086460,0.85675119,2918.0,2915.8,13.66742094]
[1769439086664,13.82308823,2918.0,2915.8,13.66742094]
[1769439087648,1.87473404,2918.1,2916.0,13.66742094]
[1769439087854,0.85663377,2918.4,2916.3,13.66742094]
[1769439088892,0.85848914,2918.9,2916.9,13.66742094]
[1769439089585,0.85848914,2918.9,2916.4,13.43385064]
[1769439089586,13.82482618,2918.9,2916.4,13.43385064]
[1769439089757,13.82482618,2918.9,2916.6,0.2335703]
[1769439089958,0.002,2917.4,2916.6,0.2335703]
[1769439090590,0.002,2917.4,2916.6,1.68603262]
[1769439090776,13.82482618,2918.9,2916.6,15.11988326]
[1769439092565,13.82482618,2918.9,2916.8,0.2335703]
[1769439093098,13.82482618,2918.9,2916.7,0.2335703]
[1769439094005,12.96633704,2918.5,2915.9,0.85836379]
[1769439094190,12.96633704,2918.3,2915.9,0.001]
[1769439094391,12.96633704,2918.3,2915.9,0.85834575]
[1769439094703,12.96633704,2918.1,2915.9,0.001]
[1769439095180,12.96633704,2918.1,2915.9,13.43485064]
[1769439095577,12.96633704,2918.1,2916.0,0.2335703]
[1769439095807,1.38230295,2918.0,2916.2,0.2335703]
[1769439096009,0.85669248,2918.2,2916.2,13.66742094]
[1769439096196,3.42649988,2918.5,2916.2,13.66742094]
[1769439096500,12.96633704,2918.5,2916.4,0.2335703]
[1769439097196,12.96633704,2918.5,2916.4,13.66742094]
[1769439097968,13.82482407,2918.9,2916.4,13.66742094]
[1769439098172,12.96633704,2918.7,2916.6,0.2335703]
[1769439098716,12.96633704,2918.5,2916.4,1.09079022]
[1769439099007,12.96633704,2918.5,2916.6,0.2335703]
[1769439099176,12.96633704,2918.5,2916.6,1.09073003]
[1769439099372,12.96633704,2918.5,2916.6,14.52458067]
[1769439099600,14.34862825,2918.4,2916.7,1.79532305]
[1769439099802,14.34862825,2918.4,2916.1,14.80069273]
[1769439100008,14.34862825,2918.4,2916.1,1.36684209]
[1769439100207,14.34862825,2918.4,2916.3,0.85723354]
[1769439100395,14.34862825,2918.4,2916.2,0.2335703]
[1769439100588,14.34862825,2918.4,2916.2,1.09082235]
[1769439100792,12.96633704,2918.2,2916.3,0.85724613]
[1769439101514,12.96633704,2918.2,2916.0,13.43385064]
[1769439101831,12.96633704,2918.2,2915.9,0.001]
[1769439101832,12.96633704,2918.0,2915.9,0.001]
[1769439102809,12.96633704,2917.8,2916.5,0.001]
[1769439104718,12.96633704,2917.6,2916.5,0.001]
[1769439105814,12.96633704,2917.6,2915.9,0.001]
[1769439106025,12.96633704,2917.4,2915.9,0.001]
[1769439106719,12.96633704,2917.0,2915.9,0.001]
[1769439108288,12.96633704,2917.0,2914.9,0.08622666]
[1769439108610,13.54882126,2916.4,2914.7,0.001]
[1769439108827,13.54882126,2916.2,2914.7,0.001]
[1769439109858,13.54882126,2916.7,2914.7,0.001]
[1769439110505,1.28557383,2917.0,2914.8,13.35330559]
[1769439110733,14.83439509,2917.0,2914.8,13.35330559]
[1769439110934,14.84535945,2916.9,2915.0,0.85763293]
[1769439111309,14.84535945,2916.9,2914.9,4.76599577]
[1769439111310,14.84535945,2916.9,2914.9,2.19307384]
[1769439111955,14.84535945,2916.9,2914.9,2.19309198]
[1769439112110,14.84535945,2916.9,2914.9,14.21096701]
[1769439112306,0.42850776,2917.0,2915.0,13.58687589]
[1769439112626,13.54882126,2917.4,2915.0,13.58687589]
[1769439112814,13.54882126,2917.4,2915.1,0.85760351]
[1769439113020,13.54882126,2917.4,2915.2,13.58687589]
[1769439113218,1.35488213,2917.3,2915.5,13.58687589]
[1769439114465,13.54882126,2917.9,2915.6,13.35330559]
[1769439114672,0.85669743,2918.2,2916.2,13.35330559]
[1769439115252,3.42866607,2918.3,2915.3,1.44444794]
[1769439115253,13.54882126,2918.1,2915.3,1.44444794]
[1769439115468,13.54882126,2917.9,2915.9,0.85734288]
[1769439115617,13.54882126,2917.9,2915.9,0.85736496]
[1769439115923,13.54882126,2917.9,2915.8,0.85737641]
[1769439116128,13.54882126,2917.9,2915.7,0.85740802]
[1769439116347,13.54882126,2917.9,2915.7,1.09098204]
[1769439116567,0.002,2917.2,2915.8,0.45208051]
[1769439116755,0.002,2917.2,2915.9,0.85736473]
[1769439117078,0.002,2917.2,2915.9,14.21067032]
[1769439117446,0.002,2917.2,2916.0,0.2335703]
[1769439117652,0.002,2917.4,2916.0,13.58687589]
[1769439117963,0.002,2918.3,2916.3,0.2335703]
[1769439118150,0.002,2918.3,2916.7,13.58687589]
[1769439118748,0.002,2918.3,2916.9,0.2335703]
[1769439118950,0.002,2918.3,2917.1,13.35330559]
[1769439119563,0.002,2918.3,2917.2,14.21029174]
[1769439120347,0.002,2918.5,2917.3,13.58687589]
[1769439120574,0.002,2918.5,2917.4,1.4443862]
[1769439120886,0.002,2918.5,2917.1,0.85701344]
[1769439121283,13.55082126,2918.5,2916.2,13.35330559]
[1769439121452,13.55082126,2918.5,2916.3,14.09799481]
[1769439121650,13.55082126,2918.5,2916.4,14.21052682]
[1769439121851,0.002,2918.5,2917.1,0.2335703]
[1769439122486,0.002,2918.5,2917.2,0.2335703]
[1769439122681,0.002,2918.5,2917.2,13.58687589]
[1769439123081,0.002,2918.5,2916.7,13.35330559]
[1769439123384,14.40743884,2918.5,2916.5,15.19171569]
[1769439123582,2.29758774,2918.4,2916.7,0.85713306]
[1769439123786,2.29758774,2918.4,2916.6,2.46203533]
[1769439124204,1.44094388,2918.4,2916.6,2.46203533]
[1769439124410,15.8464073,2918.4,2916.6,1.60489369]
[1769439124615,15.8464073,2918.4,2916.6,0.85715941]
[1769439125859,14.98976514,2918.4,2916.6,0.85715941]
[1769439126179,1.44094388,2918.4,2916.3,13.58687589]
[1769439126359,0.002,2918.5,2916.3,13.58687589]
[1769439126564,0.85860483,2918.5,2916.3,13.58687589]
[1769439126756,0.002,2918.5,2916.3,13.58687589]
[1769439127691,0.002,2918.5,2916.5,13.58687589]
[1769439127894,0.002,2918.5,2917.0,0.2335703]
[1769439128197,0.002,2918.5,2917.2,0.2335703]
[1769439128992,0.002,2918.5,2917.2,13.58687589]
[1769439129477,0.002,2918.5,2917.4,0.2335703]
[1769439129874,0.002,2918.5,2917.6,0.2335703]
[1769439130077,0.002,2918.5,2917.7,0.85683929]
[1769439130279,0.002,2918.5,2917.8,0.45178673]
[1769439130498,0.002,2918.5,2917.9,3.78]
[1769439132104,0.002,2918.9,2917.9,4.63675917]
[1769439132602,0.002,2918.9,2918.1,0.2335703]
[1769439132802,0.002,2919.4,2918.1,0.2335703]
[1769439133002,0.002,2919.4,2918.3,13.58687589]
[1769439133373,0.002,2919.4,2918.3,0.2335703]
[1769439133768,0.002,2919.4,2918.3,13.58687589]
[1769439134112,0.002,2919.4,2918.4,0.85663377]
[1769439134327,0.002,2919.7,2917.1,1.35868759]
[1769439134328,13.55082126,2919.6,2917.1,1.35868759]
[1769439134523,13.55082126,2919.6,2915.7,13.35330559]
[1769439134524,2.48414929,2916.8,2916.3,0.02076268]
[1769439134674,13.54882126,2919.1,2917.3,0.02076268]
[1769439134874,1.35528213,2919.5,2918.0,0.02076268]
[1769439135074,0.002,2919.7,2917.1,0.02076268]
[1769439135075,0.002,2919.7,2917.9,13.35330559]
[1769439135298,0.002,2919.7,2918.0,0.02076268]
[1769439135577,0.002,2919.7,2917.9,13.35330559]
[1769439135984,0.002,2919.7,2917.4,0.02076268]
[1769439136335,13.55082126,2919.6,2917.4,0.02076268]
[1769439136521,1.35528213,2919.5,2917.5,1.33740683]
[1769439136676,14.90410339,2919.5,2917.5,1.33740683]
[1769439137080,14.90410339,2919.5,2916.8,13.35330559]
[1769439137277,14.90410339,2919.5,2916.8,13.37406827]
[1769439137496,14.90410339,2919.5,2916.8,13.35330559]
[1769439137708,13.54882126,2919.1,2916.8,13.35330559]
[1769439138094,14.40527895,2919.0,2916.8,13.35330559]
[1769439138300,1.78311097,2918.9,2916.9,1.33533056]
[1769439139514,1.78311097,2918.9,2917.7,0.02076268]
[1769439139689,0.85641791,2919.2,2917.5,12.7396693]
[1769439140019,0.85641791,2919.2,2917.7,0.02076268]
[1769439140220,3.42557882,2919.3,2917.7,0.02076268]
[1769439140221,0.85634034,2919.4,2917.7,0.02076268]
[1769439140416,0.85634034,2919.4,2917.5,12.7396693]
[1769439140417,0.85634034,2919.4,2917.8,0.02076268]
[1769439140585,0.42817017,2919.3,2917.8,0.02076268]
[1769439141183,0.002,2918.7,2917.5,12.7396693]
[1769439141384,0.002,2918.7,2917.7,0.02076268]
[1769439142328,0.002,2918.7,2917.5,12.7396693]
[1769439142702,0.002,2918.7,2917.7,0.02076268]
[1769439142925,0.002,2918.7,2917.7,1.2760432]
[1769439143532,0.002,2918.7,2917.1,0.02076268]
[1769439144908,0.002,2918.7,2917.0,12.71890662]
[1769439145114,12.63304354,2918.7,2916.7,0.001]
[1769439146333,12.63104354,2918.5,2916.7,0.001]
[1769439146702,12.63104354,2918.3,2916.7,0.001]
[1769439146929,12.63104354,2918.1,2916.7,0.001]
[1769439148323,0.85675119,2918.0,2916.7,0.001]
[1769439148639,0.85675119,2918.0,2916.0,12.71890662]
[1769439148640,13.48779473,2918.0,2915.5,12.71890662]
[1769439148817,15.074167,2917.7,2915.2,0.718]
[1769439149014,12.63104354,2917.1,2914.7,0.001]
[1769439149214,12.63104354,2916.8,2914.7,0.001]
[1769439149634,12.63104354,2916.7,2914.7,0.001]
[1769439150413,13.48820598,2916.6,2914.7,0.001]
[1769439151116,13.48820598,2916.6,2914.5,0.0198418]
[1769439151117,12.63104354,2915.8,2913.2,13.88786882]
[1769439151312,12.63104354,2916.3,2914.0,0.02076268]
[1769439151538,0.43816978,2916.2,2913.9,12.71890662]
[1769439152040,0.43816978,2916.2,2914.0,13.83114726]
[1769439152247,0.43816978,2916.2,2914.0,12.71890662]
[1769439152450,0.85730942,2916.1,2914.0,12.71890662]
[1769439152743,0.42817017,2916.0,2914.1,1.27396693]
[1769439152947,1.29545052,2916.2,2914.1,12.9732396]
[1769439153243,3.42858008,2916.7,2914.1,12.9732396]
[1769439153244,0.85722123,2916.4,2914.1,12.9732396]
[1769439153544,13.48826477,2916.4,2914.9,0.001]
[1769439154741,12.63104354,2916.2,2913.6,3.43213458]
[1769439154948,12.63104354,2916.2,2913.5,16.15117356]
[1769439155146,12.63104354,2916.2,2913.7,0.85800928]
[1769439155459,12.63104354,2916.0,2913.8,0.85796764]
[1769439155632,12.63104354,2916.0,2913.8,0.85796625]
[1769439155819,12.63104354,2916.0,2913.6,3.43215743]
[1769439156021,12.63104354,2916.0,2913.8,0.85796503]
[1769439156350,1.26310435,2916.1,2913.4,0.02076268]
[1769439156351,1.26310435,2916.1,2914.0,13.5768168]
[1769439156525,0.85733882,2916.0,2914.1,1.70292885]
[1769439156717,13.48838236,2916.0,2914.1,1.70292885]
[1769439156918,13.48838236,2916.0,2913.8,0.85796501]
[1769439157118,13.48838236,2916.0,2913.6,12.71890662]
[1769439157932,13.48838236,2916.0,2913.8,13.57687028]
[1769439158133,13.48838236,2916.0,2913.9,0.85795487]
[1769439158452,13.48838236,2916.0,2913.9,0.85795598]
[1769439158653,1.69177376,2915.9,2914.0,14.4197856]
[1769439158843,0.85732747,2916.1,2914.0,14.4197856]
[1769439159357,13.48837101,2916.1,2914.0,14.4197856]
[1769439159659,13.48837101,2916.1,2914.0,1.70087898]
[1769439159821,13.48837101,2916.1,2913.8,0.8579845]
[1769439160025,13.48837101,2916.1,2913.8,13.57689112]
[1769439160243,13.48837567,2916.1,2914.0,12.71890662]
[1769439160561,13.48837567,2916.1,2914.1,0.8578978]
[1769439160756,12.63104354,2916.1,2914.1,13.57680442]
[1769439160965,1.34883397,2916.0,2914.2,14.41975611]
[1769439161121,0.85729611,2916.2,2914.2,14.41975611]
[1769439161327,13.48833965,2916.2,2914.2,14.41975611]
[1769439162757,13.48833965,2916.2,2914.2,15.27762042]
[1769439163052,13.48833965,2916.2,2914.2,14.41975611]
[1769439163470,13.48833965,2916.2,2914.2,1.70084949]
[1769439163626,12.63104354,2916.0,2913.8,0.85798027]
[1769439163827,12.63104354,2916.0,2913.9,0.85793946]
[1769439164065,12.63104354,2916.0,2913.9,12.71890662]
[1769439164837,0.85736822,2915.9,2913.9,12.71890662]
[1769439165039,13.48841176,2915.9,2913.4,16.15122968]
[1769439165257,13.06875141,2915.8,2913.5,14.33402959]
[1769439165760,13.06875141,2915.8,2913.7,0.85801185]
[1769439165960,13.06875141,2915.8,2913.5,17.76629515]
[1769439165961,13.06875141,2915.8,2913.5,15.19208564]
[1769439166256,13.06875141,2915.8,2913.7,0.001]
[1769439166553,14.0236555,2915.7,2913.7,1.43450296]
[1769439166754,0.85745644,2915.6,2913.7,1.43450296]
[1769439167463,14.88110313,2915.7,2913.7,2.29249796]
[1769439167657,14.88110313,2915.7,2913.7,1.43450296]
[1769439167845,14.88110313,2915.7,2913.7,14.15340958]
[1769439168027,0.65329729,2915.6,2913.8,14.13424758]
[1769439168225,13.28434083,2915.6,2913.8,14.13424758]
[1769439168431,13.28434083,2915.6,2913.7,0.001]
[1769439168882,14.44229305,2915.5,2913.7,0.001]
[1769439169061,1.51077012,2915.6,2913.7,12.66780775]
[1769439169755,0.65329729,2915.6,2913.7,12.66780775]
[1769439169958,1.39261196,2915.7,2913.9,12.66680775]
[1769439170185,0.002,2915.8,2914.1,12.66680775]
[1769439170459,13.5848072,2917.4,2914.9,12.66680775]
[1769439170667,0.85900539,2917.2,2914.9,12.66680775]
[1769439171169,0.002,2917.2,2915.1,12.66680775]
[1769439171958,13.5848072,2917.1,2915.1,12.66680775]
[1769439172135,1.35868072,2917.0,2915.2,13.93348853]
[1769439172339,0.002,2917.2,2915.2,13.93348853]
[1769439173058,0.002,2917.2,2915.3,0.85754467]
[1769439173267,0.002,2917.2,2915.2,13.93348853]
[1769439173667,0.002,2917.2,2915.2,14.7910618]
[1769439173973,0.002,2917.2,2915.2,13.93348853]
[1769439174278,13.5868072,2917.2,2915.3,1.39334885]
[1769439174948,13.5868072,2917.2,2915.2,13.52437858]
[1769439174949,0.002,2917.2,2915.2,13.52437858]
[1769439175177,0.002,2917.2,2915.2,12.66680775]
[1769439175178,13.5868072,2917.2,2915.2,12.66680775]
[1769439175857,13.5868072,2917.2,2915.2,13.52438045]
[1769439176059,13.5868072,2917.2,2915.2,12.66680775]
[1769439176259,13.5868072,2917.2,2915.2,13.52437351]
[1769439176461,13.5848072,2917.0,2915.3,1.35243735]
[1769439177270,14.44185291,2917.0,2915.3,1.35243735]
[1769439178059,13.5848072,2917.0,2915.3,2.20997891]
[1769439178266,1.35868072,2917.1,2915.3,14.87678666]
[1769439178471,0.85900515,2917.2,2915.3,14.87678666]
[1769439179377,0.002,2917.2,2915.3,14.0192451]
[1769439180079,0.002,2917.2,2915.4,0.001]
[1769439180242,0.002,2917.0,2915.4,0.001]
[1769439180443,0.002,2917.0,2915.4,1.4876814]
[1769439180691,0.002,2917.0,2915.4,14.15448915]
[1769439181046,0.002,2917.0,2915.6,12.66680775]
[1769439181487,0.002,2917.0,2915.4,1.4876814]
[1769439181488,13.5868072,2917.0,2915.4,1.4876814]
[1769439181646,13.5868072,2917.0,2915.2,0.12]
[1769439181843,13.5848072,2916.5,2913.9,12.66680775]
[1769439182043,13.5848072,2916.3,2913.9,12.66680775]
[1769439182274,13.5848072,2916.3,2914.1,13.52469005]
[1769439182451,1.35848072,2916.2,2914.4,0.85778971]
[1769439182660,6.65213948,2916.8,2914.2,1.35246901]
[1769439182661,13.5848072,2916.8,2914.9,12.66680775]
[1769439183275,13.5848072,2916.8,2914.9,13.52445031]
[1769439183474,13.5848072,2916.8,2914.9,12.66680775]
[1769439183475,14.44193092,2916.8,2914.9,12.66680775]
[1769439183974,0.128,2916.7,2914.5,12.66680775]
[1769439184184,13.5848072,2916.6,2914.5,12.66680775]
[1769439184477,1.37128072,2916.5,2914.8,12.66680775]
[1769439184677,0.85712372,2916.8,2914.8,12.66680775]
[1769439184855,0.85709995,2916.9,2914.9,13.52446988]
[1769439185047,14.44387094,2917.0,2914.9,13.52446988]
[1769439185250,14.44387094,2917.0,2914.9,12.66680775]
[1769439186052,13.5848072,2916.8,2914.9,12.66680775]
[1769439186380,13.5848072,2916.4,2914.2,14.01927676]
[1769439186581,14.3038072,2916.4,2914.2,14.01927676]
[1769439186792,13.5848072,2916.0,2914.2,14.01927676]
[1769439186950,13.5848072,2915.8,2913.7,12.66780775]
[1769439187680,14.44223423,2915.7,2913.7,12.66780775]
[1769439188299,14.44223423,2915.7,2913.7,0.001]
[1769439188759,13.5848072,2915.5,2913.7,0.001]
[1769439188960,1.43038072,2915.4,2913.7,0.001]
[1769439189189,15.01518792,2915.4,2913.7,0.001]
[1769439189561,14.44235187,2915.3,2913.7,0.001]
[1769439192487,13.5848072,2914.9,2913.7,0.001]
[1769439192657,13.5848072,2914.9,2913.2,1.1689622]
[1769439192857,13.5848072,2914.7,2913.2,1.1689622]
[1769439193592,13.5848072,2914.7,2910.4,12.84580825]
[1769439193593,13.5848072,2913.5,2910.4,12.84580825]
[1769439193791,13.5848072,2914.0,2911.3,12.66680775]
[1769439194087,7.37113948,2914.2,2912.0,12.66680775]
[1769439194262,0.73711395,2914.1,2912.1,13.93348853]
[1769439194460,0.73711395,2914.1,2912.4,0.85837616]
[1769439194659,14.44258726,2914.5,2912.3,12.66680775]
[1769439194877,14.44258726,2914.5,2912.3,13.52523201]
[1769439195078,13.5848072,2914.1,2912.1,1.26668078]
[1769439195280,13.5848072,2914.1,2911.8,12.66680775]
[1769439195281,13.5848072,2913.9,2911.8,12.66680775]
[1769439195607,13.5848072,2913.9,2911.3,13.52551253]
[1769439195608,13.5848072,2913.7,2911.3,13.52551253]
[1769439196801,13.5848072,2913.5,2911.3,12.66680775]
[1769439197097,0.128,2913.7,2911.3,13.52551225]
[1769439197271,1.57698613,2913.8,2911.3,13.52551225]
[1769439197473,14.44275579,2914.0,2911.5,12.66680775]
[1769439197669,14.44275579,2914.0,2911.7,12.66680775]
[1769439198288,13.5848072,2913.8,2911.4,12.82591562]